bitfinex/quotes_SOLUSD_20241213
["timestamp","ask_amount","ask_price","bid_price","bid_amount"]
[1734080719923,8.23473442,226.29,226.23,14.34853442]
[1734080720132,8.23473442,226.28,226.23,6.1138]
[1734080722848,8.23473442,226.29,226.23,14.34853442]
[1734080728065,11.0439,226.37,226.23,14.34853442]
[1734080728225,8.23473442,226.33,226.28,8.23473442]
[1734080731049,8.23473442,226.33,226.24,0.66288726]
[1734080731050,8.23473442,226.33,226.27,8.23473442]
[1734080731255,8.23473442,226.31,226.25,8.23473442]
[1734080731647,7.97826531,226.31,226.25,8.23473442]
[1734080734365,11.0439,226.37,226.24,0.66288726]
[1734080734366,8.23473442,226.3,226.24,0.66288726]
[1734080734586,8.23473442,226.3,226.24,8.89762168]
[1734080736165,8.23473442,226.28,226.23,6.1138]
[1734080736393,32.93893768,226.38,226.23,6.1138]
[1734080736394,8.23473442,226.27,226.23,6.1138]
[1734080736904,8.23473442,226.27,226.21,8.23473442]
[1734080737495,8.23473442,226.25,226.16,13.26432896]
[1734080737793,8.23473442,226.25,226.19,8.23473442]
[1734080739713,8.23473442,226.25,226.16,1.5473]
[1734080739714,8.23473442,226.22,226.16,1.5473]
[1734080739996,8.23473442,226.22,226.16,9.78203442]
[1734080740192,8.23473442,226.21,226.15,8.23473442]
[1734080740399,8.23473442,226.2,226.14,8.23473442]
[1734080741110,8.23473442,226.19,226.13,14.96854856]
[1734080741313,8.23473442,226.18,226.13,6.0708]
[1734080741476,8.23473442,226.17,226.11,9.87263442]
[1734080742575,8.23473442,226.16,226.1,8.23473442]
[1734080743414,8.23473442,226.15,226.09,8.23473442]
[1734080743566,8.23473442,226.13,226.08,6.2187]
[1734080744411,8.23473442,226.09,226.08,6.2187]
[1734080744614,8.23473442,226.09,226.03,8.23473442]
[1734080746999,26.0514,226.22,226.06,8.23473442]
[1734080747246,8.23473442,226.15,226.09,8.23473442]
[1734080747412,8.23473442,226.15,226.1,8.23473442]
[1734080748695,8.23473442,226.16,226.1,8.23473442]
[1734080748990,8.23473442,226.17,226.11,8.23473442]
[1734080749189,11.0514,226.22,226.11,12.90794081]
[1734080749412,12.90794081,226.17,226.11,12.90794081]
[1734080749779,12.90794081,226.18,226.12,12.90794081]
[1734080749994,12.90794081,226.19,226.13,12.90794081]
[1734080750311,12.90794081,226.2,226.14,12.90794081]
[1734080750810,1.598,226.24,226.13,12.90794081]
[1734080750811,12.90794081,226.19,226.13,12.90794081]
[1734080751509,12.90794081,226.18,226.12,12.90794081]
[1734080753973,12.90794081,226.19,226.13,12.90794081]
[1734080755401,12.90794081,226.19,226.1,6.89792629]
[1734080755689,12.90794081,226.19,226.12,12.90794081]
[1734080756690,12.90794081,226.19,226.13,12.90794081]
[1734080756894,12.90794081,226.2,226.13,12.90794081]
[1734080757404,12.90794081,226.2,226.14,12.90794081]
[1734080760280,12.90794081,226.2,226.12,0.6631886]
[1734080760478,12.90794081,226.2,226.14,12.90794081]
[1734080761782,12.90794081,226.21,226.15,12.90794081]
[1734080762406,12.90794081,226.21,226.12,0.6631886]
[1734080762582,12.90794081,226.21,226.15,12.90794081]
[1734080762786,12.90794081,226.2,226.14,12.90794081]
[1734080763607,12.90794081,226.19,226.13,12.90794081]
[1734080763895,1.598,226.24,226.1,6.89788081]
[1734080763896,12.90794081,226.17,226.1,19.14264081]
[1734080765198,12.90794081,226.17,226.1,12.90794081]
[1734080765782,12.90794081,226.17,226.09,0.66328196]
[1734080765783,12.90794081,226.18,226.12,12.90794081]
[1734080765989,1.598,226.24,226.13,12.90794081]
[1734080766190,12.90794081,226.2,226.13,12.90794081]
[1734080766477,12.90794081,226.18,226.12,12.90794081]
[1734080766800,12.90794081,226.18,226.11,12.90794081]
[1734080767100,12.90794081,226.17,226.1,12.90794081]
[1734080767296,12.90794081,226.16,226.1,12.90794081]
[1734080769393,11.0507,226.23,226.1,12.90794081]
[1734080769394,12.90794081,226.17,226.1,12.90794081]
[1734080770509,1.598,226.24,226.14,12.90794081]
[1734080770691,12.90794081,226.2,226.14,12.90794081]
[1734080771011,1.598,226.24,226.12,12.90794081]
[1734080771012,12.90794081,226.19,226.12,12.90794081]
[1734080771197,8.2599646,226.19,226.12,8.2599646]
[1734080773907,8.2599646,226.19,226.09,0.78873251]
[1734080774097,8.2599646,226.18,226.12,8.2599646]
[1734080774418,8.2599646,226.16,226.1,8.2599646]
[1734080775100,8.2599646,226.16,226.09,8.2599646]
[1734080775709,8.2599646,226.16,226.1,8.2599646]
[1734080776282,8.2599646,226.16,226.09,8.2599646]
[1734080777117,8.2599646,226.16,226.06,0.6632493]
[1734080777118,8.2599646,226.13,226.06,0.6632493]
[1734080777284,8.2599646,226.1,226.04,8.2599646]
[1734080778905,8.2599646,226.09,226.03,8.2599646]
[1734080779105,1.6651,226.15,226.04,8.2599646]
[1734080779106,8.2599646,226.1,226.04,8.2599646]
[1734080779602,1.6651,226.15,226.02,3.29543837]
[1734080779603,8.2599646,226.11,226.05,8.2599646]
[1734080785017,8.2599646,226.09,226.03,8.2599646]
[1734080785198,8.2599646,226.1,226.03,8.2599646]
[1734080785404,8.2599646,226.1,226.01,0.12549]
[1734080785602,8.2599646,226.1,226.04,8.2599646]
[1734080785992,8.2599646,226.1,226.03,8.2599646]
[1734080786814,8.2599646,226.1,226.0,3.35834454]
[1734080787013,8.2599646,226.08,226.02,8.2599646]
[1734080787619,8.2599646,226.08,225.99,6.587]
[1734080787932,8.2599646,226.08,226.01,8.2599646]
[1734080788103,8.2599646,226.07,225.99,6.587]
[1734080788307,8.2599646,226.05,225.99,6.587]
[1734080788516,8.2599646,226.05,225.99,14.8469646]
[1734080789427,8.2599646,226.05,225.99,8.2599646]
[1734080790005,12.7198,226.15,226.0,8.2599646]
[1734080790006,8.2599646,226.06,226.0,8.2599646]
[1734080794018,8.2599646,226.07,226.01,8.2599646]
[1734080794726,12.7198,226.15,226.02,8.2599646]
[1734080794727,8.2599646,226.08,226.02,8.2599646]
[1734080795105,8.2599646,226.1,226.04,8.2599646]
[1734080795824,1.6651,226.15,226.05,8.2599646]
[1734080796010,8.2599646,226.11,226.05,8.2599646]
[1734080796629,8.2599646,226.1,226.04,8.2599646]
[1734080796809,8.2599646,226.09,226.03,8.2599646]
[1734080798433,8.2599646,226.1,226.04,8.2599646]
[1734080799413,8.2599646,226.1,226.0,0.78899804]
[1734080799622,8.2599646,226.1,226.04,8.2599646]
[1734080802134,8.2599646,226.11,226.04,8.2599646]
[1734080802429,8.2599646,226.14,226.08,8.2599646]
[1734080802810,1.6651,226.15,226.08,8.2599646]
[1734080803009,8.2599646,226.14,226.08,8.2599646]
[1734080804228,1.6651,226.15,226.03,0.66341323]
[1734080804229,1.6651,226.15,226.09,8.2599646]
[1734080804426,61.2898584,226.27,226.03,0.66341323]
[1734080804427,8.2599646,226.2,226.14,8.2599646]
[1734080804634,1.6008,226.23,226.16,8.2599646]
[1734080804841,9.8607646,226.23,226.16,8.2599646]
[1734080805015,9.8607646,226.23,226.08,0.66318493]
[1734080805016,1.6008,226.23,226.19,8.2599646]
[1734080805217,1.6008,226.31,226.19,8.2599646]
[1734080805529,8.2599646,226.25,226.19,8.2599646]
[1734080805830,8.2599646,226.26,226.19,8.2599646]
[1734080806038,8.2599646,226.25,226.19,8.2599646]
[1734080806924,8.2599646,226.24,226.17,8.2599646]
[1734080809326,1.6008,226.31,226.21,8.2599646]
[1734080809527,8.2599646,226.28,226.21,8.2599646]
[1734080809810,1.6008,226.31,226.23,8.2599646]
[1734080810012,8.2599646,226.3,226.22,8.2599646]
[1734080810240,8.2599646,226.29,226.22,8.2599646]
[1734080811950,8.2599646,226.28,226.22,8.2599646]
[1734080812313,8.2599646,226.28,226.21,8.2599646]
[1734080812517,8.2599646,226.28,226.16,33.0398584]
[1734080812518,8.2599646,226.28,226.22,8.2599646]
[1734080812720,1.6008,226.31,226.24,8.2599646]
[1734080812943,9.8607646,226.31,226.24,8.2599646]
[1734080814135,9.8607646,226.31,226.19,0.66298954]
[1734080814136,8.2599646,226.3,226.23,8.2599646]
[1734080814523,8.2599646,226.29,226.22,8.2599646]
[1734080818643,8.2599646,226.29,226.19,0.12549]
[1734080818939,8.2599646,226.28,226.22,8.2599646]
[1734080821016,8.2599646,226.27,226.19,0.12549]
[1734080821217,8.2599646,226.25,226.14,0.66298896]
[1734080821423,8.2599646,226.22,226.16,8.2599646]
[1734080822342,8.2599646,226.21,226.15,8.2599646]
[1734080822845,8.2599646,226.2,226.14,8.2599646]
[1734080823454,8.2599646,226.21,226.15,8.2599646]
[1734080823836,8.2599646,226.2,226.15,8.2599646]
[1734080824031,8.2599646,226.21,226.14,8.2599646]
[1734080824227,8.2599646,226.21,226.15,8.2599646]
[1734080824827,1.5079,226.28,226.18,8.2599646]
[1734080825027,8.2599646,226.24,226.18,8.2599646]
[1734080825230,8.2599646,226.25,226.18,8.2599646]
[1734080825631,1.5079,226.28,226.2,8.2599646]
[1734080825872,1.5079,226.28,226.24,8.2599646]
[1734080826162,8.2599646,226.31,226.24,8.2599646]
[1734080826445,8.2599646,226.31,226.25,8.2599646]
[1734080826953,8.2599646,226.31,226.24,8.2599646]
[1734080828039,8.2599646,226.3,226.24,8.2599646]
[1734080828526,8.2599646,226.32,226.26,8.2599646]
[1734080828732,1.5772,226.33,226.27,8.2599646]
[1734080829438,1.5772,226.33,226.28,8.2599646]
[1734080829747,8.2599646,226.35,226.28,8.2599646]
[1734080830949,8.2599646,226.34,226.28,8.2599646]
[1734080831136,8.2599646,226.36,226.29,8.2599646]
[1734080831537,8.2599646,226.37,226.3,8.2599646]
[1734080832435,8.2599646,226.37,226.26,0.66274018]
[1734080832436,9.9071646,226.38,226.31,8.2599646]
[1734080837255,8.2599646,226.38,226.31,8.2599646]
[1734080839387,8.2599646,226.42,226.32,0.66267301]
[1734080839541,1.5998,226.44,226.28,17.6515]
[1734080839542,8.2599646,226.37,226.28,6.6035]
[1734080839749,8.2599646,226.37,226.31,8.2599646]
[1734080840745,8.2599646,226.37,226.3,8.2599646]
[1734080841556,8.2599646,226.35,226.29,8.2599646]
[1734080841750,8.2599646,226.35,226.22,6.421]
[1734080841751,8.2599646,226.3,226.22,6.421]
[1734080842043,8.2599646,226.26,226.2,8.2599646]
[1734080845388,8.2599646,226.27,226.21,8.2599646]
[1734080845751,1.6069,226.35,226.2,8.2599646]
[1734080845958,8.2599646,226.24,226.18,8.2599646]
[1734080847578,8.2599646,226.21,226.1,17.0969]
[1734080847778,8.2599646,226.2,226.13,8.2599646]
[1734080847982,8.2599646,226.19,226.13,8.2599646]
[1734080848571,8.2599646,226.18,226.12,8.2599646]
[1734080849460,8.2599646,226.19,226.13,8.2599646]
[1734080851921,8.2599646,226.18,226.12,8.2599646]
[1734080853410,1.6195,226.25,226.13,8.2599646]
[1734080853597,8.2599646,226.2,226.14,8.2599646]
[1734080853982,8.2599646,226.2,226.1,6.0403]
[1734080853983,8.2599646,226.16,226.1,6.0403]
[1734080854205,8.2599646,226.16,226.1,8.2599646]
[1734080854591,8.2599646,226.17,226.11,8.2599646]
[1734080855702,8.2599646,226.16,226.1,8.2599646]
[1734080856046,8.2599646,226.13,226.05,6.128]
[1734080856234,8.2599646,226.13,226.07,8.2599646]
[1734080858023,8.2599646,226.12,226.06,8.2599646]
[1734080858255,8.2599646,226.11,226.05,6.128]
[1734080858398,8.2599646,226.1,226.04,8.2599646]
[1734080858593,8.2599646,226.11,226.05,8.2599646]
[1734080858821,1.6278,226.21,226.1,8.2599646]
[1734080858999,8.2599646,226.19,226.13,8.2599646]
[1734080859200,8.2599646,226.2,226.14,8.2599646]
[1734080860740,1.6278,226.21,226.15,8.2599646]
[1734080860944,8.2599646,226.23,226.17,8.2599646]
[1734080861455,12.90217218,226.23,226.17,12.90217218]
[1734080861746,1.6278,226.27,226.16,12.90217218]
[1734080861953,12.90217218,226.22,226.16,12.90217218]
[1734080863587,12.90217218,226.23,226.16,12.90217218]
[1734080865763,12.90217218,226.21,226.14,12.90217218]
[1734080866041,12.90217218,226.22,226.15,12.90217218]
[1734080867438,12.90217218,226.22,226.16,12.90217218]
[1734080868916,12.90217218,226.19,226.09,17.6963]
[1734080869245,12.6767,226.27,226.11,12.90217218]
[1734080869410,12.90217218,226.18,226.11,12.90217218]
[1734080869844,12.90217218,226.19,226.12,12.90217218]
[1734080870611,12.90217218,226.18,226.12,12.90217218]
[1734080871022,12.90217218,226.18,226.11,12.90217218]
[1734080872715,12.90217218,226.15,226.06,0.66329774]
[1734080872914,12.90217218,226.13,226.05,11.0591]
[1734080873110,12.90217218,226.12,226.06,12.90217218]
[1734080873612,12.90217218,226.13,226.06,12.90217218]
[1734080874723,12.90217218,226.13,226.07,12.90217218]
[1734080875931,12.90217218,226.11,226.05,12.90217218]
[1734080876133,12.90217218,226.1,226.04,19.10337218]
[1734080876943,12.90217218,226.09,226.03,12.90217218]
[1734080878449,12.90217218,226.08,225.99,6.0748]
[1734080878654,12.90217218,226.07,226.01,12.90217218]
[1734080880459,12.90217218,226.09,226.03,12.90217218]
[1734080880826,12.90217218,226.09,225.99,6.0748]
[1734080881023,12.90217218,226.09,226.03,12.90217218]
[1734080881227,8.26753427,226.09,226.03,8.26753427]
[1734080882256,8.26753427,226.05,225.99,6.0748]
[1734080882471,8.26753427,226.05,225.99,8.26753427]
[1734080883340,8.26753427,226.05,225.96,1.606]
[1734080883341,8.26753427,226.04,225.98,8.26753427]
[1734080884349,8.26753427,226.03,225.94,6.2918]
[1734080884656,8.26753427,226.02,225.96,8.26753427]
[1734080885464,1.5721,226.1,225.96,8.26753427]
[1734080885652,8.26753427,226.02,225.96,8.26753427]
[1734080885856,8.26753427,226.03,225.97,8.26753427]
[1734080886366,8.26753427,226.02,225.96,8.26753427]
[1734080887364,18.36538794,226.1,225.89,17.4456]
[1734080887365,8.26753427,225.97,225.89,17.4456]
[1734080887547,8.26753427,225.97,225.91,8.26753427]
[1734080888269,8.26753427,225.97,225.89,17.4456]
[1734080888444,8.26753427,225.96,225.9,8.26753427]
[1734080888866,8.26753427,225.97,225.91,8.26753427]
[1734080890239,8.26753427,225.97,225.89,17.4456]
[1734080890557,8.26753427,225.97,225.91,8.26753427]
[1734080893265,8.26753427,225.95,225.89,14.64603427]
[1734080893866,8.26753427,225.94,225.88,8.26753427]
[1734080894970,8.26753427,225.95,225.89,8.26753427]
[1734080895671,8.26753427,225.96,225.89,8.26753427]
[1734080895857,1.6395,226.02,225.92,8.26753427]
[1734080896176,8.26753427,225.98,225.92,8.26753427]
[1734080897247,8.26753427,225.97,225.91,8.26753427]
[1734080897446,8.26753427,225.96,225.9,8.26753427]
[1734080897962,8.26753427,225.96,225.89,8.26753427]
[1734080898264,8.26753427,225.95,225.89,8.26753427]
[1734080898452,8.26753427,225.94,225.88,8.26753427]
[1734080899045,8.26753427,225.94,225.87,8.80167087]
[1734080900473,8.26753427,225.93,225.87,8.80167087]
[1734080901956,8.26753427,225.95,225.89,8.26753427]
[1734080902250,1.6395,226.02,225.9,8.26753427]
[1734080902458,8.26753427,225.97,225.91,8.26753427]
[1734080902657,8.26753427,225.98,225.92,8.26753427]
[1734080902856,1.6395,226.02,225.95,8.26753427]
[1734080902857,8.26753427,226.02,225.95,8.26753427]
[1734080903074,8.26753427,226.02,225.96,8.26753427]
[1734080903481,8.26753427,226.03,225.97,8.26753427]
[1734080903781,8.26753427,226.02,225.96,8.26753427]
[1734080903966,8.26753427,226.03,225.96,8.26753427]
[1734080904365,8.26753427,226.02,225.96,8.26753427]
[1734080904560,8.26753427,226.05,225.99,8.26753427]
[1734080904763,8.26753427,226.05,225.98,8.26753427]
[1734080904966,8.26753427,226.04,225.98,8.26753427]
[1734080905373,8.26753427,226.03,225.97,8.26753427]
[1734080905574,8.26753427,226.04,225.98,8.26753427]
[1734080907957,8.26753427,226.02,225.93,11.0653]
[1734080908278,8.26753427,226.02,225.95,8.26753427]
[1734080908684,8.26753427,226.02,225.96,8.26753427]
[1734080909880,1.5938,226.07,225.96,8.26753427]
[1734080910088,8.26753427,226.03,225.96,8.26753427]
[1734080910266,8.26753427,226.03,225.97,8.26753427]
[1734080910467,8.26753427,226.03,225.96,8.26753427]
[1734080910883,1.5938,226.07,225.98,8.26753427]
[1734080911088,8.26753427,226.05,225.98,8.26753427]
[1734080911391,8.26753427,226.07,226.0,8.26753427]
[1734080911767,1.6408,226.12,226.02,8.26753427]
[1734080911987,8.26753427,226.09,226.02,8.26753427]
[1734080912585,8.26753427,226.08,226.01,8.26753427]
[1734080913181,8.26753427,226.07,226.01,8.26753427]
[1734080914480,8.26753427,226.07,226.0,8.26753427]
[1734080915182,8.26753427,226.08,226.01,8.26753427]
[1734080915379,8.26753427,226.08,225.98,11.0627]
[1734080915380,8.26753427,226.09,226.02,8.26753427]
[1734080915572,8.26753427,226.09,226.03,8.26753427]
[1734080915771,1.6408,226.12,226.05,8.26753427]
[1734080915772,9.90833427,226.12,226.05,8.26753427]
[1734080917098,8.26753427,226.13,226.06,8.26753427]
[1734080918391,8.26753427,226.12,226.05,8.26753427]
[1734080918713,8.26753427,226.13,226.06,8.26753427]
[1734080920387,8.26753427,226.14,226.07,8.26753427]
[1734080921594,1.6133,226.17,226.08,8.26753427]
[1734080921595,8.26753427,226.15,226.08,8.26753427]
[1734080922187,8.26753427,226.14,226.07,8.26753427]
[1734080922785,8.26753427,226.13,226.03,12.676]
[1734080922989,8.26753427,226.13,226.06,8.26753427]
[1734080930316,1.6133,226.17,226.06,8.26753427]
[1734080930619,1.6133,226.17,226.1,8.26753427]
[1734080930800,9.88083427,226.17,226.1,8.26753427]
[1734080931487,9.88083427,226.17,226.06,11.72195178]
[1734080931689,9.88083427,226.17,226.1,8.26753427]
[1734080934315,8.26753427,226.16,226.09,8.26753427]
[1734080936312,8.26753427,226.13,226.06,11.0586]
[1734080936506,8.26753427,226.12,226.02,11.72394637]
[1734080936699,8.26753427,226.12,226.05,8.26753427]
[1734080936899,8.26753427,226.11,226.04,8.26753427]
[1734080937099,8.26753427,226.1,226.02,11.0606]
[1734080937316,8.26753427,226.1,226.03,8.26753427]
[1734080937998,8.26753427,226.12,226.06,8.26753427]
[1734080938404,1.6133,226.17,226.06,8.26753427]
[1734080938638,8.26753427,226.14,226.07,8.26753427]
[1734080940708,8.26753427,226.13,226.07,8.26753427]
[1734080942114,1.6133,226.17,226.11,8.26753427]
[1734080943719,8.26753427,226.15,226.08,8.26753427]
[1734080944101,8.26753427,226.14,226.08,8.26753427]
[1734080944500,8.26753427,226.13,226.06,8.26753427]
[1734080946625,8.26753427,226.14,226.07,8.26753427]
[1734080947004,8.26753427,226.13,226.07,8.26753427]
[1734080948001,8.26753427,226.12,226.05,19.32673427]
[1734080948207,8.26753427,226.12,226.06,8.26753427]
[1734080949123,8.26753427,226.08,226.02,8.26753427]
[1734080949923,33.07013708,226.16,226.01,8.26753427]
[1734080949924,8.26753427,226.07,226.01,8.26753427]
[1734080950926,8.26753427,226.08,226.0,11.0619]
[1734080951128,8.26753427,226.11,226.05,8.26753427]
[1734080951319,8.26753427,226.12,226.06,8.26753427]
[1734080953723,1.6133,226.17,226.07,8.26753427]
[1734080953724,8.26753427,226.14,226.07,8.26753427]
[1734080953926,8.26753427,226.14,226.08,8.26753427]
[1734080954230,8.26753427,226.15,226.08,8.26753427]
[1734080954436,8.26753427,226.16,226.09,8.26753427]
[1734080954610,8.26753427,226.13,226.07,8.26753427]
[1734080954805,8.26753427,226.13,226.04,17.1543]
[1734080955001,8.26753427,226.11,226.05,8.26753427]
[1734080955824,8.26753427,226.12,226.06,8.26753427]
[1734080956337,8.26753427,226.11,226.05,8.26753427]
[1734080957210,8.26753427,226.1,226.04,8.26753427]
[1734080958131,8.26753427,226.11,226.05,8.26753427]
[1734080958707,8.26753427,226.11,226.04,8.26753427]
[1734080959438,8.26753427,226.12,226.06,8.26753427]
[1734080959628,8.26753427,226.13,226.07,8.26753427]
[1734080961144,8.26753427,226.13,226.02,11.0609]
[1734080961323,8.26753427,226.14,226.08,8.26753427]
[1734080962239,8.26753427,226.14,226.02,11.72434126]
[1734080962240,8.26753427,226.13,226.07,8.26753427]
[1734080962537,8.26753427,226.12,226.06,8.26753427]
[1734080963529,8.26753427,226.13,226.07,8.26753427]
[1734080963715,8.26753427,226.09,225.99,7.53320839]
[1734080963932,8.26753427,226.08,226.02,8.26753427]
[1734080964102,33.07013708,226.16,226.01,8.26753427]
[1734080964307,8.26753427,226.07,226.01,8.26753427]
[1734080965324,8.26753427,226.06,225.99,8.26753427]
[1734080965546,8.26753427,226.06,226.0,8.26753427]
[1734080966731,8.26753427,226.07,226.01,8.26753427]
[1734080968728,8.26753427,226.09,226.03,8.26753427]
[1734080968932,6.3725,226.13,225.98,17.6064]
[1734080968933,8.26753427,226.08,226.02,8.26753427]
[1734080971026,8.26753427,226.09,226.03,8.26753427]
[1734080974120,8.26753427,226.09,226.02,8.26753427]
[1734080974807,8.26753427,226.07,226.01,8.26753427]
[1734080975528,8.26753427,226.07,225.98,17.6064]
[1734080975912,8.26753427,226.07,226.01,8.26753427]
[1734080978136,8.26753427,226.05,225.98,8.26753427]
[1734080980034,1.5638,226.09,226.03,8.26753427]
[1734080980239,1.5638,226.09,226.05,8.26753427]
[1734080980551,6.3725,226.13,226.06,8.26753427]
[1734080980552,8.26753427,226.13,226.06,8.26753427]
[1734080982336,1.5638,226.14,226.07,8.26753427]
[1734080982515,1.5638,226.14,226.1,8.26753427]
[1734080982712,1.5638,226.14,226.12,8.26753427]
[1734080982916,8.26753427,226.18,226.12,8.26753427]
[1734080983838,8.26753427,226.17,226.1,8.26753427]
[1734080986744,1.6196,226.19,226.1,8.26753427]
[1734080986745,8.26753427,226.16,226.1,8.26753427]
[1734080986953,1.6196,226.19,226.02,8.0587]
[1734080986954,8.26753427,226.12,226.02,8.0587]
[1734080987133,8.26753427,226.1,226.03,8.26753427]
[1734080988033,11.0539,226.17,226.02,6.4772]
[1734080988034,11.0539,226.17,226.05,8.26753427]
[1734080988234,8.26753427,226.14,226.08,8.26753427]
[1734080989869,8.26753427,226.12,226.05,8.26753427]
[1734080990359,8.26753427,226.11,226.05,8.26753427]
[1734080991644,8.26753427,226.1,226.03,8.26753427]
[1734080992427,8.26753427,226.1,226.04,8.26753427]
[1734080993333,8.26753427,226.11,226.05,8.26753427]
[1734080994045,8.26753427,226.12,226.06,8.26753427]
[1734080994231,8.26753427,226.12,226.05,8.26753427]
[1734080997753,8.26753427,226.12,226.06,8.26753427]
[1734081000350,8.26753427,226.13,226.06,8.26753427]
[1734081000765,8.26753427,226.11,226.05,8.26753427]
[1734081002696,8.26753427,226.09,226.03,8.26753427]
[1734081002854,8.26753427,226.08,226.02,8.26753427]
[1734081003549,11.0546,226.15,226.05,8.26753427]
[1734081003774,11.0546,226.15,225.98,11.0629]
[1734081003775,8.26753427,226.12,226.06,8.26753427]
[1734081003956,8.26753427,226.13,226.06,8.26753427]
[1734081004778,12.6723,226.19,226.08,8.26753427]
[1734081004973,8.26753427,226.15,226.08,8.26753427]
[1734081005365,12.6723,226.19,226.08,8.26753427]
[1734081005558,8.26753427,226.16,226.09,8.26753427]
[1734081006074,8.26753427,226.18,226.11,8.26753427]
[1734081007851,8.26753427,226.16,226.1,8.26753427]
[1734081008056,8.26753427,226.16,226.09,8.26753427]
[1734081008474,8.26753427,226.16,226.1,8.26753427]
[1734081010454,1.6196,226.19,226.11,8.26753427]
[1734081010767,8.26753427,226.18,226.11,8.26753427]
[1734081011497,9.88713427,226.19,226.12,8.26753427]
[1734081012489,1.6196,226.19,226.13,8.26753427]
[1734081013746,1.5952,226.26,226.13,8.26753427]
[1734081013861,8.26753427,226.21,226.14,8.26753427]
[1734081014394,8.26753427,226.22,226.15,8.26753427]
[1734081014574,8.26753427,226.21,226.15,8.26753427]
[1734081016063,8.26753427,226.22,226.16,8.26753427]
[1734081016569,8.26753427,226.21,226.15,8.26753427]
[1734081017268,8.26753427,226.21,226.14,8.26753427]
[1734081018266,8.26753427,226.21,226.15,8.26753427]
[1734081018461,1.5952,226.26,226.16,8.26753427]
[1734081018675,8.26753427,226.22,226.16,8.26753427]
[1734081019360,8.26753427,226.23,226.17,8.26753427]
[1734081021695,1.5952,226.26,226.18,8.26753427]
[1734081021896,8.26753427,226.25,226.19,8.26753427]
[1734081022798,9.86273427,226.26,226.19,8.26753427]
[1734081023512,1.5952,226.26,226.2,8.26753427]
[1734081023667,8.26753427,226.28,226.22,8.26753427]
[1734081023868,1.561,226.31,226.22,8.26753427]
[1734081024085,8.26753427,226.29,226.22,8.26753427]
[1734081024601,8.26753427,226.3,226.23,8.26753427]
[1734081025587,1.561,226.31,226.24,8.26753427]
[1734081025775,1.561,226.31,226.26,8.26753427]
[1734081027713,8.26753427,226.32,226.26,8.26753427]
[1734081028505,8.26753427,226.32,226.25,8.26753427]
[1734081028817,8.26753427,226.31,226.25,8.26753427]
[1734081029299,8.26753427,226.27,226.21,8.26753427]
[1734081029598,8.26753427,226.29,226.22,8.26753427]
[1734081030404,8.26753427,226.27,226.21,8.26753427]
[1734081031604,8.26753427,226.29,226.22,8.26753427]
[1734081033400,8.26753427,226.28,226.22,8.26753427]
[1734081034205,8.26753427,226.27,226.17,0.78851103]
[1734081034411,8.26753427,226.27,226.21,8.26753427]
[1734081036077,8.26753427,226.26,226.17,0.66302103]
[1734081036284,8.26753427,226.23,226.16,8.26753427]
[1734081036580,8.26753427,226.23,226.14,7.9892]
[1734081036581,8.26753427,226.21,226.14,14.67063427]
[1734081037202,8.26753427,226.22,226.15,8.26753427]
[1734081037406,8.26753427,226.23,226.16,8.26753427]
[1734081038687,1.6657,226.28,226.19,8.26753427]
[1734081038887,9.93323427,226.28,226.21,8.26753427]
[1734081039088,8.26753427,226.29,226.22,8.26753427]
[1734081042014,1.5322,226.33,226.24,8.26753427]
[1734081042204,8.26753427,226.31,226.24,8.26753427]
[1734081042602,8.26753427,226.29,226.2,0.12549]
[1734081042803,8.26753427,226.29,226.23,8.26753427]
[1734081043207,8.26753427,226.28,226.22,8.26753427]
[1734081044201,8.26753427,226.28,226.2,0.12549]
[1734081044394,8.26753427,226.28,226.22,8.26753427]
[1734081044795,8.26753427,226.29,226.22,8.26753427]
[1734081046622,8.26753427,226.29,226.17,1.6468]
[1734081046623,8.26753427,226.28,226.21,8.26753427]
[1734081048726,8.26753427,226.27,226.21,8.26753427]
[1734081051257,1.5322,226.33,226.17,2.30977173]
[1734081051258,1.5322,226.33,226.19,8.26753427]
[1734081051418,8.26753427,226.24,226.17,9.91433427]
[1734081051617,8.26753427,226.22,226.14,6.4031]
[1734081051805,8.26753427,226.21,226.14,14.67063427]
[1734081053828,8.26753427,226.22,226.16,8.26753427]
[1734081054720,8.26753427,226.24,226.17,8.26753427]
[1734081055019,8.26753427,226.25,226.18,8.26753427]
[1734081055723,84.5322,226.33,226.2,8.26753427]
[1734081055724,8.26753427,226.26,226.2,8.26753427]
[1734081056105,8.26753427,226.28,226.21,8.26753427]
[1734081057226,8.26753427,226.3,226.23,8.26753427]
[1734081059503,8.26753427,226.29,226.22,8.26753427]
[1734081060408,8.26753427,226.28,226.22,8.26753427]
[1734081061727,8.26753427,226.29,226.22,8.26753427]
[1734081063812,8.26753427,226.27,226.2,8.26753427]
[1734081064020,8.26753427,226.26,226.19,1.6487]
[1734081064221,8.26753427,226.26,226.19,9.91623427]
[1734081064530,8.26753427,226.23,226.17,8.26753427]
[1734081065612,8.26753427,226.27,226.2,8.26753427]
[1734081066513,8.26753427,226.26,226.19,8.26753427]